Cogmind - Beta 16 @@@ ROGUE MODE // 2025.12.24 @ 22:06:14 Player: FrigidRock Result: Destroyed by G-73 Enforcer with Phase Gun Performance ------------- Evolutions (9) 4500 Regions Visited (16) 3200 Robots Destroyed (265) 1325 Value Destroyed (13786) 13786 Prototype IDs (41) 820 Alien Tech Used (2) 400 Bonus (4796) 4796 TOTAL SCORE: 28827 Bonus ------- High Alert Combat Kills 3140 Follower Combat Kills 56 Registered with UFD 300 Met Optimus in HQ 500 Met Zhirov 300 Scanned by Researcher 500 Cogmind --------- Core Integrity 0/1600 Matter 201/300 Energy 190/190 System Corruption 47% Temperature Cool (0) Movement Walking (120) Location -1/Command Parts ------- > --- POWER (2) -------- Improved Fusion Compressor Light Quantum Reactor > --- PROPULSION (8) --- Myomer Leg Centrium Leg > --- UTILITY (11) ----- Advanced Heat Sink Graphene Brace > --- WEAPON (4) ------- KE Penetrator > --- INVENTORY (5) ---- Light Antimatter Reactor Advanced Energy Well Peak State ------------ > --- POWER ------------ Light Quantum Reactor Light Quantum Reactor > --- PROPULSION ------- Biometal Heavy Treads Advanced Heavy Siege Treads High-density Centrium Heavy Treads Biometal Leg Biometal Leg > --- UTILITY ---------- Coolant Network Huge Storage Unit Long-range Terrain Scanner Experimental Terrain Scan Processor Advanced Targeting Computer Advanced Target Analyzer Core Analyzer Advanced Transmission Jammer Graphene Brace Phase Redirector > --- WEAPON ----------- Hypervelocity Railgun Hypervelocity Railgun Hypervelocity Multirail Gamma Bomb Array > --- INVENTORY -------- Light Quantum Reactor Light Quantum Reactor Light Quantum Reactor Biometal Leg Advanced Heat Sink Experimental Matter Compressor Experimental Matter Compressor Advanced Recoil Stabilizer Heavy Armor Plating High-powered Tractor Beam Cooled Phase Gun Cooled Phase Gun Enhanced Nova Cannon Railgun Railgun Enhanced Hardcell Cannon Enhanced Hardcell Cannon CPS Tube Lance [Rating: 216] Favorites ----------- Power Light Quantum Reactor Engine Ion Engine Power Core Fission Core Reactor Light Quantum Reactor Propulsion Armored Medium Treads Treads Armored Medium Treads Leg Biometal Leg Wheel Armored Huge Wheel Hover Unit Antigrav System Flight Unit Cooled Nuclear Pulse Thruster Utility Experimental Terrain Scan Processor Device Improved Heat Sink Storage Huge Storage Unit Processor Experimental Terrain Scan Processor Hackware Improved Hacking Suite Protection Experimental Power Shielding Artifact Phase Redirector Weapon Hypervelocity Railgun Energy Gun Cooled Phase Gun Energy Cannon Improved EM Pulse Cannon Ballistic Gun Hypervelocity Railgun Ballistic Cannon Hardcell Cannon Launcher Gamma Bomb Array Special Weapon CPS Tube Piercing Weapon Lance Build | -11 -10 -10 -10 -7 -5 -5 -5 -5 -4 -4 -3 -3 -2 -2 -1 -1 ------- Run | Yrd Mat Min Sub Scr Fac Upp Upp Zhi Pro Fac Res Tes Res Qua Acc Com Slots Evolved 18 | . . . . . 10 . . . . 2 2 . 2 . 2 . Power 1 | . . . . . 1 . . . . . . . . . . . Propulsion 6 | . . . . . 3 . . . . 1 2 . . . . . Utility 9 | . . . . . 5 . . . . 1 . . 1 . 2 . Weapon 2 | . . . . . 1 . . . . . . . 1 . . . Parts Attached 261 | 6 16 . 1 6 14 24 7 5 1 37 33 5 30 13 57 6 Power 37 | 1 1 . . 2 1 1 1 . . 4 5 . 7 4 8 2 Engine 5 | 1 . . . 1 1 . 1 . . . 1 . . . . . Core 8 | . 1 . . 1 . 1 . . . 3 . . 1 . . 1 Reactor 24 | . . . . . . . . . . 1 4 . 6 4 8 1 Propulsion 72 | 2 4 . . 1 3 9 . 3 . 12 9 . 5 3 19 2 Treads 28 | 2 . . . . . 7 . . . 6 7 . 5 1 . . Leg 33 | . 4 . . . 2 2 . . . 2 . . . 2 19 2 Wheel 1 | . . . . 1 . . . . . . . . . . . . Hover 6 | . . . . . . . . . . 4 2 . . . . . Flight 4 | . . . . . 1 . . 3 . . . . . . . . Utility 90 | 1 7 . . . 7 11 4 2 1 13 12 2 7 4 18 1 Device 50 | 1 2 . . . 5 2 3 . 1 8 7 1 5 2 12 1 Storage 17 | . 4 . . . . 9 . 1 . . 1 1 . 1 . . Processor 10 | . . . . . 1 . . . . 3 3 . 1 . 2 . Hackware 3 | . . . . . 1 . . . . 1 . . 1 . . . Protection 9 | . 1 . . . . . 1 1 . 1 1 . . . 4 . Artifact 1 | . . . . . . . . . . . . . . 1 . . Weapon 62 | 2 4 . 1 3 3 3 2 . . 8 7 3 11 2 12 1 Energy Gun 25 | . . . 1 2 1 2 . . . 6 1 . 5 1 6 . Energy Cannon 5 | . . . . 1 . . 1 . . . . . . . 3 . Ballistic Gun 21 | 2 4 . . . . . . . . 1 6 2 4 1 . 1 Ballistic Cannon 5 | . . . . . . 1 1 . . 1 . . . . 2 . Launcher 3 | . . . . . 2 . . . . . . . 1 . . . Special Weapon 1 | . . . . . . . . . . . . . . . 1 . Impact Weapon . | . . . . . . . . . . . . . . . . . Slashing Weapon . | . . . . . . . . . . . . . . . . . Piercing Weapon 2 | . . . . . . . . . . . . 1 1 . . . Special Melee Weapon . | . . . . . . . . . . . . . . . . . Unidentified Prototypes 17 | . . . . . 1 . . 4 . . 1 2 3 2 4 . Corrupted Parts 4 | . . . . . . . . . . . . . . . 3 1 System Corruption 34 | . . . . . . . . . . . . . . . 24 10 Parts Lost 157 | . 3 . 2 . 12 1 . . 8 31 7 2 7 4 79 1 Power 19 | . . . 1 . 1 1 . . . 1 1 1 1 2 10 . Propulsion 44 | . . . . . 2 . . . 4 11 1 . 1 1 24 . Utility 55 | . 1 . . . 6 . . . 3 10 4 . 2 1 28 . Weapon 39 | . 2 . 1 . 3 . . . 1 9 1 1 3 . 17 1 Highest Loss Streak 30 | . 2 . 2 . 10 1 . . 7 7 2 2 3 2 30 1 To Critical Strikes . | . . . . . . . . . . . . . . . . . Average Backups 12 | 1 9 15 14 12 6 4 5 4 3 3 16 24 22 21 16 2 Power 1 | . 1 2 2 1 . . . . 1 . . 2 2 2 3 1 Propulsion 1 | . . 2 2 . . . . . . . 4 5 2 . . . Utility 3 | . 3 6 6 4 2 1 1 1 . . 4 5 6 7 5 1 Weapon 4 | . 4 4 3 4 1 1 1 1 1 . 5 10 9 10 7 . Tool/Special . | . . . . . . . . . . . . . . . . . Unused Backups 43 | . 3 . . 13 2 . . 1 1 1 8 1 5 2 4 2 Power 8 | . 1 . . . . . . . 1 1 . . 2 . 2 1 Propulsion 11 | . . . . 4 . . . . . . 4 . 2 1 . . Utility 11 | . 1 . . 2 1 . . . . . 3 . . 1 2 1 Weapon 11 | . 1 . . 7 . . . . . . 1 1 1 . . . Tool/Special 2 | . . . . . 1 . . 1 . . . . . . . . Average Slot Usage (%) 78 | . 99 100 97 85 31 61 97 73 54 54 74 84 88 73 79 14 Core 5 | . 11 14 11 12 1 1 5 5 4 4 . . . . . 2 Reactor 2 | . . . . . . . . . . 1 6 8 7 7 7 . Treads 12 | . 21 . . . . 10 29 19 6 5 17 23 23 17 2 . Leg 4 | . 6 28 28 . . 7 . . . 5 . . . . 18 3 Wheel 2 | . . . . 13 1 . . . . . . . . . . . Device 14 | . 10 14 14 14 12 14 23 22 12 10 9 18 18 14 17 4 Storage 7 | . 13 14 14 14 2 5 8 . . . 3 4 4 4 3 . Processor 7 | . . . . . 3 5 5 5 5 10 15 14 15 17 12 . Protection 1 | . 3 . . . . . 1 5 5 3 1 . . . 1 . Energy Gun 5 | . . . 2 17 2 4 5 . . 3 . . 5 1 5 . Energy Cannon 1 | . . . . 6 1 . 4 . . . . . . . 2 . Ballistic Gun 8 | . 27 28 25 4 . . . . . 1 12 10 10 5 4 . Peak Build Rating 216 | 6 13 12 12 27 56 67 77 76 65 101 163 164 186 205 216 51 Average Rating 79 | 4 11 12 11 23 23 44 75 57 52 66 136 157 179 177 162 26 On Entrance 62 | . 6 12 12 9 27 22 67 76 60 23 40 149 159 185 196 15 Avg Prop Armor Cover (%) 18 | . . . . . 15 17 . 25 23 26 15 15 15 9 7 . Naked Turns . | . . . . . . . . . . . . . . . . . Heaviest Build 187 | 9 32 32 32 42 55 37 55 55 18 45 139 133 151 160 187 24 Greatest Support 335 | 40 40 20 20 28 28 140 140 140 18 124 285 215 255 335 245 55 Greatest Overweight (x) 62 | . 2 1 1 1 8 1 . 1 . 1 . . . . 62 1 Average Overweight (x) . | . . 1 1 1 . . . . . . . . . . . . Largest Inventory Capacity 25 | 5 15 15 15 15 15 5 5 5 5 5 25 25 25 25 25 5 Average Capacity 15 | 5 12 15 15 15 8 5 5 5 5 5 21 25 25 25 24 5 Most Carried 25 | 4 15 15 15 15 15 5 5 5 5 5 25 25 25 25 24 3 Average Carried 12 | 1 9 15 14 13 7 4 5 4 3 3 17 24 23 22 16 2 Final Capacity 25 | 5 15 15 15 15 5 5 5 5 5 5 25 25 25 25 5 5 Final Carried 25 | 4 15 15 15 15 4 5 5 5 4 4 25 25 23 22 3 2 Class Distribution -------------------- 46% | Mutant 18% | Scavenger-Gunner 15% | Scavenger-Mutant 8% | Scavenger-Tank 5% | Tank 4% | Gunner Dominant Class ---------------- Mutant | -10/Materials Mutant | -10/Mines Mutant | -10/Subcaves Mutant | -7/Scraptown Mutant | -5/Factory Scavenger-Mutant | -5/Upper Caves Scavenger-Tank | -5/Upper Caves Scavenger-Mutant | -5/Zhirov Scavenger-Mutant | -4/Proximity Caves Scavenger-Mutant | -4/Factory Tank | -3/Research Scavenger-Mutant | -3/Testing Scavenger-Gunner | -2/Research Mutant | -2/Quarantine Scavenger-Gunner | -1/Access Mutant | -1/Command Resources | -11 -10 -10 -10 -7 -5 -5 -5 -5 -4 -4 -3 -3 -2 -2 -1 -1 ----------- Run | Yrd Mat Min Sub Scr Fac Upp Upp Zhi Pro Fac Res Tes Res Qua Acc Com Matter Collected 11739 | 159 883 . 87 364 125 458 201 150 57 901 1797 250 3401 1350 1556 . Remotely 5343 | . . . . . . . . . . . 1143 250 2128 705 1117 . Salvage Created 16638 | 75 902 . 159 . 140 636 56 232 224 1054 2159 429 4888 2213 3378 93 Parts 798 | 8 65 . 8 . 4 19 3 2 8 36 126 22 236 78 178 5 Haulers Intercepted 5 | . . . . . . . . . . . 2 . 2 1 . . Recyclers Shooed 12 | . . . . . . . . . . 1 1 . 5 1 4 . Parts Field Recycled . | . . . . . . . . . . . . . . . . . Retrieved Matter . | . . . . . . . . . . . . . . . . . Parts Self-Destructed 19 | . . . 5 . . . 9 . 5 . . . . . . . Prevented 7 | . . . . . . . 5 . 2 . . . . . . . Parts Restored . | . . . . . . . . . . . . . . . . . Kills | -11 -10 -10 -10 -7 -5 -5 -5 -5 -4 -4 -3 -3 -2 -2 -1 -1 ------- Run | Yrd Mat Min Sub Scr Fac Upp Upp Zhi Pro Fac Res Tes Res Qua Acc Com Combat Hostiles Destroyed 203 | . 23 . 4 . 3 . 1 . 10 12 22 4 54 21 48 1 Melee 1 | . . . . . . . . . . . . . . . . 1 Guns 156 | . 23 . 4 . 1 . . . . 8 22 4 50 21 23 . Cannons 15 | . . . . . 1 . 1 . 4 4 . . . . 5 . AOE 26 | . . . . . 1 . . . 6 . . . 4 . 15 . Classes Destroyed 18 | 1 5 . 2 . 2 . 1 . . . 2 . 2 1 2 . Worker 19 | . 3 . . . . . . . . . . . 9 1 6 . Builder 9 | . . . . . . . . . . . . . 2 2 5 . Tunneler 6 | 3 . . . . . . . . . 1 . . 1 . 1 . Hauler 5 | . . . . . . . . . . . 2 . 2 1 . . Recycler 8 | . 1 . . . . . . . . 2 2 1 1 1 . . Minesweeper 1 | . . . . . . . 1 . . . . . . . . . Operator 2 | . . . . . 1 . . . . . . . . 1 . . Watcher 10 | . 3 . . . . . . . . . 3 . 2 . 2 . Swarmer 45 | . 6 . 1 . . . . . 10 . 4 . 8 . 16 . Grunt 76 | . 17 . . . 2 1 1 . . 7 3 . 23 11 10 1 Duelist 2 | . . . . . . . . . . . . . 1 1 . . Researcher 1 | . . . . . . . . . . . . . . 1 . . Sentry 4 | . . . 1 . . . . . . 1 1 . 1 . . . Specialist 1 | . . . . . . . . . . . . . . . 1 . Hunter 29 | . . . . . . . . . . . 7 2 4 6 10 . Programmer 43 | . . . . . 1 . . . . 4 7 2 17 3 9 . Q-Series 2 | . . . . . . . . . . . . . . . 2 . Subdweller 2 | . . . 2 . . . . . . . . . . . . . Best Kill Streak 19 | 3 5 . 2 . 1 . 1 . 5 3 5 3 18 10 19 1 Combat Bots Only 12 | . 5 . 2 . 1 . 1 . 5 2 4 2 12 7 11 1 Max Kills in Single Turn 7 | 2 2 . 1 . 1 1 1 . 3 1 1 1 3 2 7 1 Gunslinging 1 | . 1 . . . . . . . . . . . 1 1 1 . Exploded 6 | . . . . . 1 . . . 3 . . . 1 . 6 . Melee 1 | . . . . . . . . . . . . . . . . 1 Uniques/NPCs Destroyed . | . . . . . . . . . . . . . . . . . Combat | -11 -10 -10 -10 -7 -5 -5 -5 -5 -4 -4 -3 -3 -2 -2 -1 -1 -------- Run | Yrd Mat Min Sub Scr Fac Upp Upp Zhi Pro Fac Res Tes Res Qua Acc Com Hostile Shots Fired 2419 | . 115 . 32 . 77 5 13 . 88 479 342 49 243 206 759 11 Missed 797 | . 28 . 13 . 24 3 4 . 34 180 102 20 69 44 272 4 Hits 1622 | . 87 . 19 . 53 2 9 . 54 299 240 29 174 162 487 7 Melee 4 | . . . . . . . . . 1 . . . . 3 . . Projectile 1618 | . 87 . 19 . 53 2 9 . 53 299 240 29 174 159 487 7 AOE 5 | . . . . . 2 . . . 3 . . . . . . . Critical Strikes 91 | . . . . . 2 . . . 3 20 16 6 5 14 24 1 Actively Blocked 53 | . . . . . . . . . . . 4 6 5 13 24 1 Part Disruptions 5 | . . . . . . . . . . 1 1 . 2 . 1 . Damage Taken 32421 | . 889 . 347 . 1455 41 108 . 1052 5480 4251 555 3798 3421 10872 152 Core 4345 | . 142 . 104 . 309 . 14 . 408 756 383 23 106 493 1537 70 Absorbed by Shields 32 | . . . . . . . 32 . . . . . . . . . Reduced by Siege Mode 804 | . . . . . . . . . . 54 79 14 143 342 172 . Redirected to Core 387 | . . . . . . . . . . . . . . 317 70 . Redirected to Shielding 397 | . . . . . . . 5 . 69 100 . . . . 223 . Ignored by Resistances 170 | . . . . . . . . . 10 . . . . . 160 . Core Remaining (%) 47 | 100 . . . 1 . . . . 26 34 . 68 . 58 . . Volleys Fired 612 | 2 77 . 19 . 11 54 6 8 20 83 92 11 94 36 97 2 Largest 4 | 2 2 . 2 . 3 2 3 1 1 3 3 3 4 4 4 1 Hottest 356 | 40 46 . 68 . 269 115 235 75 55 188 135 130 224 146 356 33 Shots Fired 1521 | 4 154 . 38 . 21 56 16 8 19 162 253 31 334 126 297 2 Gun 1355 | 4 154 . 38 . 11 53 5 8 . 129 253 31 328 126 213 2 Cannon 132 | . . . . . 7 3 11 . 11 33 . . . . 67 . Launcher 33 | . . . . . 3 . . . 8 . . . 6 . 16 . Special 1 | . . . . . . . . . . . . . . . 1 . Kinetic 992 | 4 154 . 31 . . 3 5 . 11 68 250 31 218 92 123 2 Thermal 427 | . . . . . 11 53 11 8 . 62 . . 110 34 138 . Explosive . | . . . . . . . . . . . . . . . . . Electromagnetic 101 | . . . 7 . 10 . . . 8 32 3 . 6 . 35 . Robot Hit Streak 29 | 1 13 . 19 . 25 13 5 9 10 11 20 8 29 24 24 2 Robot Miss Streak 7 | 1 4 . 2 . 1 3 3 . 1 5 3 2 5 3 7 . Penetration Max 3 | . . . . . . . . . . 3 1 1 2 1 2 . Secondary Targets 29 | . 4 . 1 . . . . . . 1 4 . 8 6 5 . Max Gunslinging Chain 1 | . 1 . 1 . . . . . . 1 1 . 1 1 1 . Shots Hit Robots 1091 | 2 97 . 32 . 17 43 6 8 15 117 170 23 257 98 203 3 Core Hits 650 | 4 40 . 7 . 11 17 4 5 11 49 79 11 170 56 184 2 Critical Kills 104 | . 1 . . . . . . . . 2 16 5 49 20 11 . Critical Parts Destroyed 123 | . 1 . . . . . . . . 7 12 9 46 23 25 . Critical Strikes 272 | . 2 . 1 . . 7 . . 2 16 28 14 110 46 45 1 Burn 29 | . . . . . . 7 . . . 1 . . 14 2 5 . Destroy 230 | . 2 . 1 . . . . . . 10 28 14 96 43 36 . Blast 7 | . . . . . . . . . 2 3 . . . . 2 . Corrupt 4 | . . . . . . . . . . 2 . . . . 2 . Impale 2 | . . . . . . . . . . . . . . 1 . 1 Melee Attacks 17 | . . . . . . . . . . . . 3 2 10 1 1 Impact . | . . . . . . . . . . . . . . . . . Slashing . | . . . . . . . . . . . . . . . . . Piercing 17 | . . . . . . . . . . . . 3 2 10 1 1 Sneak Attacks 3 | . . . . . . . . . . . . . 1 1 . 1 Combat Hostiles 1 | . . . . . . . . . . . . . . . . 1 Follow-up Attacks . | . . . . . . . . . . . . . . . . . Damage Inflicted 26788 | 41 1449 . 454 . 570 1030 216 142 735 2882 3230 237 5038 1803 8822 139 Guns 19229 | 41 1449 . 454 . 283 974 62 142 . 1862 3230 237 4575 1711 4160 49 Cannons 3143 | . . . . . 160 56 154 . 325 978 . . . . 1470 . Explosions 4044 | . . . . . 127 . . . 410 39 . . 288 . 3180 . Melee 243 | . . . . . . . . . . . . . 62 91 . 90 Ramming 129 | . . . . . . . . . . 3 . . 113 1 12 . Kinetic 12125 | 41 1449 . 363 . . 56 78 . 325 1240 3230 237 1992 889 2176 49 Thermal 9432 | . . . . . 283 974 138 142 . 1104 . . 2583 822 3386 . Explosive 665 | . . . . . . . . . . 39 . . . . 626 . Electromagnetic 4194 | . . . 91 . 287 . . . 410 496 . . 288 . 2622 . Impact . | . . . . . . . . . . . . . . . . . Slashing . | . . . . . . . . . . . . . . . . . Piercing 243 | . . . . . . . . . . . . . 62 91 . 90 Highest Corruption 47 | . . . . . 11 11 11 7 7 9 13 16 12 23 37 47 Average Corruption 11 | . . . . . 7 11 10 7 7 4 9 15 8 15 19 37 Corruption Purged 4 | . . . . . . . 4 . . . . . . . . . Corruption Blocked . | . . . . . . . . . . . . . . . . . Effects 330 | . . . . . 25 41 33 12 5 10 34 14 61 34 54 7 Message Errors 75 | . . . . . 7 9 10 5 . . 9 3 17 5 10 . Matter Fused 80 | . . . . . 3 14 9 4 3 2 6 5 21 6 6 1 Heat Flow Errors 29 | . . . . . 4 4 1 . . 1 5 1 3 4 5 1 Energy Discharges 34 | . . . . . 3 1 5 1 . 3 3 1 6 3 8 . Parts Rejected 5 | . . . . . . . . . . 1 . 1 1 1 1 . Parts Fused 2 | . . . . . . . . 1 . . . . . . 1 . Data Loss (minor) 29 | . . . . . 1 5 2 1 . 1 3 . 2 4 8 2 Data Loss (major) 20 | . . . . . 3 3 4 . 1 1 3 1 1 2 . 1 Misfires 8 | . . . . . . 2 . . . 1 . 1 2 1 1 . Alerts 12 | . . . . . 3 1 1 . . . . 1 2 2 1 1 Misdirections 9 | . . . . . 1 . 1 . . . . . . . 6 1 Weapon Failures 27 | . . . . . . 2 . . 1 . 5 . 6 6 7 . Overload Shots . | . . . . . . . . . . . . . . . . . Overflow Damage 481 | . . . . . 20 2 . . 9 71 . . . 142 237 . Projectiles 173 | . . . . . . 2 . . . 31 . . . . 140 . Explosions 166 | . . . . . 20 . . . 9 40 . . . . 97 . Melee 142 | . . . . . . . . . . . . . . 142 . . Knockbacks 24 | . . . . . . 1 1 . 2 12 . . . . 8 . Impact . | . . . . . . . . . . . . . . . . . Kinetic 22 | . . . . . . 1 1 . 2 12 . . . . 6 . Secondary 2 | . . . . . . . . . . . . . . . 2 . Self-Inflicted Damage 631 | . . . . . 22 . . . 27 96 . . 28 . 458 . Shots 31 | . . . . . 2 . . . 3 1 . . 3 . 22 . Rammed 12 | . . . . . . . . . . 1 . . 10 1 . . Targets Rammed 13 | . . . . . . . . . . 1 . . 10 1 1 . Kicked 1 | . . . . . . . . . . . . . . . 1 . Crushed . | . . . . . . . . . . . . . . . . . Highest Temperature 457 | . 104 . . . 318 229 162 . . 314 216 69 457 199 230 210 Average Temperature 56 | . 23 . . . 111 92 79 . . 80 108 52 57 87 47 138 Received Heat Transfer 3049 | . 348 . 42 . 222 9 7 . 63 1293 120 . 405 234 279 27 Effects 4 | . . . . . . . . . . . . . 4 . . . Shutdowns 1 | . . . . . . . . . . . . . 1 . . . Interference 3 | . . . . . . . . . . . . . 3 . . . Siege Activations 27 | . . . . . . . . . . 1 3 1 13 5 4 . Total Turns 572 | . . . . . . . . . . 33 52 12 308 93 74 . Longest Duration 82 | . . . . . . . . . . 33 30 12 82 36 33 . Martial Activations . | . . . . . . . . . . . . . . . . . Shielding Activations . | . . . . . . . . . . . . . . . . . Robots Disrupted 1 | . . . . . . . . . . . . . . . 1 . Combat Hostiles 1 | . . . . . . . . . . . . . . . 1 . Robots Corrupted 5 | . . . . . . . . . . . . . . . 5 . Combat Hostiles 5 | . . . . . . . . . . . . . . . 5 . Parts Fried 19 | . . . . . 1 . . . . 1 . . 3 . 14 . Impact Corruptions . | . . . . . . . . . . . . . . . . . Robots Melted . | . . . . . . . . . . . . . . . . . Combat Hostiles . | . . . . . . . . . . . . . . . . . Parts Melted 33 | . . . . . 3 2 . . . 11 2 . 12 . 3 . Heat Transferred 14902 | . . . . . 550 2220 185 212 . 1517 . . 4366 1258 4594 . Parts Sabotaged 2 | . . . . . . . . . . . . . . 2 . . Parts Stolen . | . . . . . . . . . . . . . . . . . Parts Stripped . | . . . . . . . . . . . . . . . . . Power Chain Reactions 3 | . . . . . . . . . . . . . . . 3 . Alert | -11 -10 -10 -10 -7 -5 -5 -5 -5 -4 -4 -3 -3 -2 -2 -1 -1 ------- Run | Yrd Mat Min Sub Scr Fac Upp Upp Zhi Pro Fac Res Tes Res Qua Acc Com Maximum Alert Level 4 | . 1 . . . . . . . . 1 1 . 3 3 4 2 Low Security (%) 57 | 100 80 100 . . 100 . . . . 81 91 100 20 . . . Level 1 9 | . 19 . . . . . . . . 18 8 . 9 . . . Level 2 20 | . . . . . . . . . . . . . 49 73 39 100 Level 3 8 | . . . . . . . . . . . . . 20 26 20 . Level 4 4 | . . . . . . . . . . . . . . . 39 . Level 5 . | . . . . . . . . . . . . . . . . . High Security . | . . . . . . . . . . . . . . . . . Max Security . | . . . . . . . . . . . . . . . . . Peak Influence 1249 | 10 250 92 . . 75 . . . . 272 266 181 1031 935 1249 618 Initial 618 | . 6 92 . . . . . . . 194 23 132 39 579 546 618 Average 301 | 1 92 39 . . 23 . . . . 157 63 135 467 622 897 604 Influence Increases 7028 | 15 713 5 40 . 329 . 60 . 509 631 640 129 1572 674 1681 30 Destroy 0b10 Robot/C 4060 | . 460 . 40 . 60 . 40 . 200 240 440 80 1080 440 960 20 Destroy 0b10 Robot/NC 305 | 15 35 5 . . 5 . 5 . . 15 35 5 85 30 70 . Destroy Leader 740 | . 116 . . . 20 . 10 . 20 30 100 10 188 72 164 10 Allied During Kill 9 | . . . . . . . 5 . 4 . . . . . . . Trap Triggered on 0b10 20 | . . . . . 20 . . . . . . . . . . . Successful Hack 112 | . 12 . . . 25 . . . . 28 10 . 21 . 16 . Select Force Hacks 30 | . 30 . . . . . . . . . . . . . . . Disable Machine 300 | . 45 . . . 15 . . . . 90 30 30 . 15 75 . Destroy Structure 462 | . . . . . 4 . . . . 138 10 4 33 42 231 . Partial Spotted 30 | . . . . . 15 . . . . . . . . . 15 . Lose Combat Pursuer 960 | . 15 . . . 165 . . . 285 90 15 . 165 75 150 . Influence Decreases 6430 | 5 486 242 40 . 307 22 60 . 200 895 449 294 612 794 1625 399 Entered New Map 1597 | . 4 145 . . . 9 . . . 115 22 104 32 452 365 349 Time Decay 3377 | 5 452 97 40 . 265 13 60 . 90 470 390 170 513 302 470 40 Lost Part 1426 | . 30 . . . 42 . . . 80 310 37 20 67 40 790 10 Lost Ally 30 | . . . . . . . . . 30 . . . . . . . Squads Dispatched 50 | . 7 . . . 6 . . . 1 6 4 . 8 7 9 2 Investigation 9 | . 4 . . . 2 . . . . . . . 1 . . 2 Extermination 16 | . . . . . 2 . . . . 3 3 . 3 2 3 . Reinforcement 21 | . 3 . . . 2 . . . . 3 1 . 3 4 5 . Assault 4 | . . . . . . . . . 1 . . . 1 1 1 . Garrison . | . . . . . . . . . . . . . . . . . Intercept . | . . . . . . . . . . . . . . . . . Searches Triggered . | . . . . . . . . . . . . . . . . . Construction Impeded 4 | . . . . . . . . . . 1 . . 1 . 2 . Haulers Reinforced 2 | . . . . . . . . . . . 1 . 1 . . . Active Scanning Responses . | . . . . . . . . . . . . . . . . . Cargo Convoy Interrupts 2 | . . . . . 1 . . . . 1 . . . . . . Stealth | -11 -10 -10 -10 -7 -5 -5 -5 -5 -4 -4 -3 -3 -2 -2 -1 -1 --------- Run | Yrd Mat Min Sub Scr Fac Upp Upp Zhi Pro Fac Res Tes Res Qua Acc Com Distress Signals 22 | . 4 . . . . . . . 5 . 1 1 5 . 6 . Communications Jammed 220 | . . . . . . . . . . . 25 . 143 48 4 . Distress Signals 213 | . . . . . . . . . . . 25 . 136 48 4 . Times Spotted 392 | . 33 9 4 . 37 4 4 . 26 38 33 5 77 37 80 5 Peak Tracking Total 14 | . 5 12 2 . 9 3 3 . 14 14 5 3 9 8 13 5 Tactical Retreats 41 | . 1 1 . . 8 2 . . 7 4 1 . 6 3 8 . ECM-based Alert Blocks 3 | . . . . . 3 . . . . . . . . . . . Traps | -11 -10 -10 -10 -7 -5 -5 -5 -5 -4 -4 -3 -3 -2 -2 -1 -1 ------- Run | Yrd Mat Min Sub Scr Fac Upp Upp Zhi Pro Fac Res Tes Res Qua Acc Com Traps Triggered 14 | . 5 . . . 1 . . . . 4 . 1 1 . . 2 Indirectly . | . . . . . . . . . . . . . . . . . Trap Hack Attempts . | . . . . . . . . . . . . . . . . . Triggered . | . . . . . . . . . . . . . . . . . Disarmed 1 | . . . . . . . . . . . 1 . . . . . Reprogrammed . | . . . . . . . . . . . . . . . . . Reused 2 | . . . . . 2 . . . . . . . . . . . Traps Extracted . | . . . . . . . . . . . . . . . . . Installed 10 | . . . . . 2 . 8 . . . . . . . . . Triggered 2 | . . . . . 2 . . . . . . . . . . . Most Traps Carried 3 | . . . . 3 3 . . . . . . . . . . . Machines | -11 -10 -10 -10 -7 -5 -5 -5 -5 -4 -4 -3 -3 -2 -2 -1 -1 ---------- Run | Yrd Mat Min Sub Scr Fac Upp Upp Zhi Pro Fac Res Tes Res Qua Acc Com Machines Disabled 21 | . 3 . . . 1 1 . . . 6 2 2 . 1 5 . Max in Single Turn 3 | . 1 . . . 1 1 . . . 3 1 1 . 1 1 . Machines Repaired . | . . . . . . . . . . . . . . . . . Machines Dismantled . | . . . . . . . . . . . . . . . . . Machines Sabotaged . | . . . . . . . . . . . . . . . . . Overloaded Fab Kills . | . . . . . . . . . . . . . . . . . Hacking | -11 -10 -10 -10 -7 -5 -5 -5 -5 -4 -4 -3 -3 -2 -2 -1 -1 --------- Run | Yrd Mat Min Sub Scr Fac Upp Upp Zhi Pro Fac Res Tes Res Qua Acc Com Machines Accessed 42 | . 6 . . 11 5 . 1 4 . 4 5 . 4 . 2 . Terminals 17 | . 5 . . . 3 . . . . 3 3 . 2 . 1 . Fabricators . | . . . . . . . . . . . . . . . . . Repair Stations . | . . . . . . . . . . . . . . . . . Recycling Units 3 | . 1 . . . 1 . . . . . . . 1 . . . Scanalyzers 5 | . . . . . 1 . . . . . 2 . 1 . 1 . Garrison Access 1 | . . . . . . . . . . 1 . . . . . . Total Hacks 149 | . 17 . . 71 11 . 1 17 . 8 10 . 11 . 3 . Successful 111 | . 7 . . 71 5 . 1 17 . 2 4 . 3 . 1 . Failed 37 | . 10 . . . 6 . . . . 6 6 . 7 . 2 . Catastrophic 6 | . 1 . . . . . . . . . 3 . 1 . 1 . Database Lockouts 1 | . . . . . . . . . . . . . 1 . . . Manual 26 | . 16 . . . 4 . . . . 5 1 . . . . . Terminals 42 | . 14 . . . 6 . . . . 6 7 . 7 . 2 . Fabricators . | . . . . . . . . . . . . . . . . . Repair Stations . | . . . . . . . . . . . . . . . . . Recycling Units 6 | . 3 . . . 1 . . . . . . . 2 . . . Scanalyzers 10 | . . . . . 4 . . . . . 3 . 2 . 1 . Garrison Access 2 | . . . . . . . . . . 2 . . . . . . Terminal Hacks 96 | . . . . 71 . . 1 17 . 2 2 . 2 . 1 . Record 75 | . . . . 70 . . . 5 . . . . . . . . Part Schematic 4 | . . . . . . . . 4 . . . . . . . . Robot Analysis 4 | . . . . . . . . 4 . . . . . . . . Prototype ID Bank 5 | . . . . . . . . 4 . . 1 . . . . . Open Door 2 | . . . . . . . 1 . . . . . 1 . . . Branch Access Points 2 | . . . . . . . . . . . . . 1 . 1 . Terminal Index 1 | . . . . . . . . . . 1 . . . . . . Locate Traps 1 | . . . . . . . . . . 1 . . . . . . Disarm Traps 1 | . . . . . . . . . . . 1 . . . . . Proto ID Catalog 1 | . . . . 1 . . . . . . . . . . . . Fabricator Hacks . | . . . . . . . . . . . . . . . . . Repair Station Hacks . | . . . . . . . . . . . . . . . . . Recycling Unit Hacks . | . . . . . . . . . . . . . . . . . Scanalyzer 5 | . . . . . 3 . . . . . 1 . 1 . . . Retrieve Study 5 | . . . . . 3 . . . . . 1 . 1 . . . Garrison Access Hacks . | . . . . . . . . . . . . . . . . . Unauthorized Hacks 10 | . 7 . . . 2 . . . . . 1 . . . . . Terminals 8 | . 6 . . . 1 . . . . . 1 . . . . . Botnet 5 | . 3 . . . 1 . . . . . 1 . . . . . Skim 3 | . 3 . . . . . . . . . . . . . . . Fabricators . | . . . . . . . . . . . . . . . . . Repair Stations . | . . . . . . . . . . . . . . . . . Recycling Units 2 | . 1 . . . 1 . . . . . . . . . . . Tunnel 1 | . 1 . . . . . . . . . . . . . . . Fedlink 1 | . . . . . 1 . . . . . . . . . . . Scanalyzers . | . . . . . . . . . . . . . . . . . Garrison Access . | . . . . . . . . . . . . . . . . . Data Cores Recovered . | . . . . . . . . . . . . . . . . . Used . | . . . . . . . . . . . . . . . . . Hacking Detections 23 | . 5 . . . 4 . . . . 4 5 . 3 . 2 . Full Trace Events 2 | . . . . . 1 . . . . . . . 1 . . . Feedback Events . | . . . . . . . . . . . . . . . . . Feedback Blocked . | . . . . . . . . . . . . . . . . . Robot Schematics Acquired . | . . . . . . . . . . . . . . . . . Robots Built . | . . . . . . . . . . . . . . . . . Authchips . | . . . . . . . . . . . . . . . . . Time . | . . . . . . . . . . . . . . . . . Total Robot Build Rating . | . . . . . . . . . . . . . . . . . Part Schematics Acquired 4 | . . . . . . . . 4 . . . . . . . . Parts Built . | . . . . . . . . . . . . . . . . . Authchips . | . . . . . . . . . . . . . . . . . Time . | . . . . . . . . . . . . . . . . . Total Part Build Rating . | . . . . . . . . . . . . . . . . . Part Studies Acquired 5 | . . . . . 3 . . . . . 1 . 1 . . . Parts Repaired . | . . . . . . . . . . . . . . . . . Time . | . . . . . . . . . . . . . . . . . Parts Recycled . | . . . . . . . . . . . . . . . . . Recycled Matter . | . . . . . . . . . . . . . . . . . Retrieved Matter . | . . . . . . . . . . . . . . . . . Retrieved Components . | . . . . . . . . . . . . . . . . . Parts Scanalyzed . | . . . . . . . . . . . . . . . . . Part Schematics Acquired . | . . . . . . . . . . . . . . . . . Parts Damaged . | . . . . . . . . . . . . . . . . . Bothacking | -11 -10 -10 -10 -7 -5 -5 -5 -5 -4 -4 -3 -3 -2 -2 -1 -1 ------------ Run | Yrd Mat Min Sub Scr Fac Upp Upp Zhi Pro Fac Res Tes Res Qua Acc Com Used RIF Installer . | . . . . . . . . . . . . . . . . . Robots Hacked . | . . . . . . . . . . . . . . . . . Non-combat . | . . . . . . . . . . . . . . . . . Combat . | . . . . . . . . . . . . . . . . . Robot Hacks Applied . | . . . . . . . . . . . . . . . . . Relay Couplers Released . | . . . . . . . . . . . . . . . . . Fabnet Peak Effective % . | . . . . . . . . . . . . . . . . . Robots Rewired 3 | . . . . . . 3 . . . . . . . . . . Allies Hacked . | . . . . . . . . . . . . . . . . . Hacks Repelled . | . . . . . . . . . . . . . . . . . Allies | -11 -10 -10 -10 -7 -5 -5 -5 -5 -4 -4 -3 -3 -2 -2 -1 -1 -------- Run | Yrd Mat Min Sub Scr Fac Upp Upp Zhi Pro Fac Res Tes Res Qua Acc Com Total Allies 6 | . . 3 . . . 3 . . . . . . . . . . Largest Group 3 | . . 3 . . . 3 2 1 . . . . . . . . Highest-Rated Group 87 | . . 40 . . . 87 58 29 . . . . . . . . Highest-Rated Ally 29 | . . 16 . . . 29 29 29 . . . . . . . . Total Orders . | . . . . . . . . . . . . . . . . . Ally Attacks 39 | . . 20 . . . . 17 . 2 . . . . . . . Total Damage 539 | . . 222 . . . . 317 . . . . . . . . . Kills 6 | . . 5 . . . . 1 . . . . . . . . . Allies Corrupted . | . . . . . . . . . . . . . . . . . Allies Melted . | . . . . . . . . . . . . . . . . . Intel | -11 -10 -10 -10 -7 -5 -5 -5 -5 -4 -4 -3 -3 -2 -2 -1 -1 ------- Run | Yrd Mat Min Sub Scr Fac Upp Upp Zhi Pro Fac Res Tes Res Qua Acc Com Active Infowar (turns) 10598 | 9 1546 236 420 2444 337 15 795 319 114 438 764 348 1788 673 352 . IFF 170 | . . . . . . . . . . . . . . . 170 . Terrain 1703 | . . . . . 98 . . . . 153 . . 900 370 182 . Structural 4638 | . 1327 236 420 2444 211 . . . . . . . . . . . Seismic 1888 | 9 219 . . . 132 15 795 319 114 285 . . . . . . Jamming 3619 | . . . . . . . . . . . 764 348 1669 673 165 . ECM 209 | . . . . . 209 . . . . . . . . . . . Robot Analysis Total 4 | . . . . . . . . 4 . . . . . . . . Derelict Logs Recovered 5 | . . 1 1 1 . 1 . . 1 . . . . . . . Drone Launches 1 | . . . . . . . . . 1 . . . . . . . Drone Recoveries . | . . . . . . . . . . . . . . . . . Exploration | -11 -10 -10 -10 -7 -5 -5 -5 -5 -4 -4 -3 -3 -2 -2 -1 -1 ------------- Run | Yrd Mat Min Sub Scr Fac Upp Upp Zhi Pro Fac Res Tes Res Qua Acc Com Turns Passed 14962 | 73 2003 236 420 2444 790 1054 831 319 188 1180 1287 348 1839 673 1185 92 Spaces Moved 8768 | 37 813 125 173 2084 876 575 404 256 261 873 620 165 729 266 441 70 Core 643 | 3 . . . . 380 . . . . 202 11 . . . 9 38 Treads 3230 | 34 598 . . . . 154 404 83 . 198 465 165 729 266 134 . Legs 1112 | . 215 125 173 15 2 83 . . . 169 . . . . 298 32 Wheels 2229 | . . . . 2069 160 . . . . . . . . . . . Hover 169 | . . . . . . . . . . 25 144 . . . . . Flight 1385 | . . . . . 334 338 . 173 261 279 . . . . . . Fastest Speed 29 | 50 160 190 190 115 40 50 160 69 29 35 46 156 155 155 50 100 Average Speed 122 | 151 168 190 190 115 65 92 160 101 48 94 131 160 160 155 143 109 Slowest Speed 3150 | 160 260 190 190 190 450 190 160 160 69 190 162 162 170 156 3150 120 Overloaded Moves . | . . . . . . . . . . . . . . . . . Propulsion Burnouts . | . . . . . . . . . . . . . . . . . Robots Hopped 9 | . . . . . 3 . . . 4 2 . . . . . . Potential Cave-ins . | . . . . . . . . . . . . . . . . . Cave-ins Triggered . | . . . . . . . . . . . . . . . . . Exploration Rate (%) 36 | 4 97 36 23 94 28 45 49 55 45 24 17 21 22 34 13 5 Regions Visited 16 Branch Regions 10 Pre-discovered Areas 10 | . 1 . . 5 . 1 . 3 . . . . . . . . Known Exits Taken 8 | . . . . . . 1 1 . 1 1 1 1 1 . 1 . Unknown Exits Taken 8 | 1 1 1 1 1 1 . . 1 . . . . . 1 . . Scrap Searched 8 | . . . . 6 . 1 1 . . . . . . . . . Spaces Dug 13 | . . . . . . . 1 . . 1 . . 1 6 4 . Terrain Destroyed 221 | . . . . . 1 . 6 . 1 87 14 2 11 20 79 . Melee 7 | . . . . . . . . . . . . . 1 6 . . Projectile 52 | . . . . . 1 . 6 . 1 6 7 . . 5 26 . AOE 132 | . . . . . . . . . . 81 . . . . 51 . Terrain Rammed . | . . . . . . . . . . . . . . . . . Walls Destroyed . | . . . . . . . . . . . . . . . . . Machines Disabled . | . . . . . . . . . . . . . . . . . Actions | -11 -10 -10 -10 -7 -5 -5 -5 -5 -4 -4 -3 -3 -2 -2 -1 -1 --------- Run | Yrd Mat Min Sub Scr Fac Upp Upp Zhi Pro Fac Res Tes Res Qua Acc Com Total 11811 | 48 1325 124 233 2129 1071 1037 576 310 299 1063 887 216 1218 436 760 79 Wait 1638 | . 372 . 40 . 143 336 143 16 11 45 65 21 288 55 103 . Move 8735 | 36 812 124 172 2083 870 574 403 255 252 868 619 164 728 265 440 70 Hop 8 | . . . . . 2 . . . 4 2 . . . . . . Pick Up 135 | 4 21 . 1 19 . . 1 3 1 5 34 3 15 8 20 . Fast Attach 194 | 6 12 . . 3 8 22 8 9 . 36 31 4 9 7 34 5 Attach 110 | . 4 . 1 2 9 1 . 1 5 9 6 3 12 17 39 1 Detach 42 | . . . . . 3 1 . 1 4 7 2 1 1 14 8 . Swap 95 | . 9 . . 1 . 6 . . . 2 10 5 37 11 14 . Drop 158 | . 18 . . 21 8 14 7 17 2 5 28 1 22 12 3 . Fire 612 | 2 77 . 19 . 11 54 6 8 20 83 92 11 94 36 97 2 Melee 17 | . . . . . . . . . . . . 3 2 10 1 1 Ram . | . . . . . . . . . . . . . . . . . Kick 1 | . . . . . . . . . . . . . . . 1 . Crush 12 | . . . . . . . . . . 1 . . 10 1 . . Escape Stasis 15 | . . . . . 15 . . . . . . . . . . . Rewire 29 | . . . . . . 29 . . . . . . . . . . Trap 10 | . . . . . 2 . 8 . . . . . . . . . Miscellaneous . | . . . . . . . . . . . . . . . . . Route ------- -11/Scrapyard -10/Materials (discovered 4 exits: [*Mat x3] / [*Min]) -10/Mines -10/Subcaves -7/Scraptown (discovered 2 exits: *Fac x2) -5/Factory (discovered 4 exits: *Fac x2 / [*Upp x2]) -5/Upper Caves -5/Upper Caves (discovered 2 exits: *Fac / *Zhi) -5/Zhirov -4/Proximity Caves -4/Factory (discovered 3 exits: *Res / [*Upp] / Ext) -3/Research (discovered 3 exits: Res / Arm / *Tes) -3/Testing -2/Research (discovered 2 exits: *Qua x2) -2/Quarantine -1/Access -1/Command History --------- Turn | Location | Event 11 | -11/Scrapyard | Discovered new exit (range 14) 74 | -11/Scrapyard | Entered Materials 301 | -10/Materials | Build established: Mutant 353 | -10/Materials | Discovered new exit (range 16) 574 | -10/Materials | Discovered new exit (range 3) 1348 | -10/Materials | Discovered new exit (range 7) 1657 | -10/Materials | Core integrity fell below 50% 1899 | -10/Materials | Discovered new exit (range 16) 2077 | -10/Materials | Entered Mines 2089 | -10/Mines | Assisted by bots powering up and referring to "LRC-V3" 2235 | -10/Mines | Learned 4 Materials zone layouts 2286 | -10/Mines | Assembled infested the area 2290 | -10/Mines | Discovered new exit (range 13) 2291 | -10/Mines | Assisted by a Guerilla fighting off Assembled 2313 | -10/Mines | Entered Subcaves 2314 | -10/Subcaves | Approached by a straggling Scientist 2343 | -10/Subcaves | Lost 4 allies 2392 | -10/Subcaves | Learned 4 Materials zone layouts 2645 | -10/Subcaves | Core integrity fell below 20% 2729 | -10/Subcaves | Scientist uncovered a shortcut to Scraptown 2733 | -10/Subcaves | Entered Scraptown 3081 | -7/Scraptown | Received an X-ray algorithm 3091 | -7/Scraptown | Scanned Subdweller tech in exchange for log data 3114 | -7/Scraptown | Discovered new exit (range 3) 3201 | -7/Scraptown | Visited Cyclists 3262 | -7/Scraptown | Visited UFD Registry 3262 | -7/Scraptown | Registered with UFD as "Fluxplate" 3276 | -7/Scraptown | Visited SPCMW 3352 | -7/Scraptown | Entered Cyclist Reading Room 3357 | -7/Scraptown | Learned location of Zion (-6) 3384 | -7/Scraptown | Visited Science Testing Area 3404 | -7/Scraptown | Visited Awakened 3642 | -7/Scraptown | Visited Artisan Demo Area 3724 | -7/Scraptown | Visited Comm Corps 3821 | -7/Scraptown | Guru changed UFD alias to "Macecutter" 3961 | -7/Scraptown | Visited LU-1G1's Boring Crew 4053 | -7/Scraptown | Visited DA-N13 Charitable Foundation 4058 | -7/Scraptown | Found DCF Scrap (31 items) 4108 | -7/Scraptown | Visited Science Guys 4326 | -7/Scraptown | Visited Scrap Suit Storage 4385 | -7/Scraptown | Visited Infowarlord's Domain 4400 | -7/Scraptown | Found Exp. Terrain Scan Processor 4428 | -7/Scraptown | Visited Scrapoid Research Area 4457 | -7/Scraptown | Visited Chapter 10 4507 | -7/Scraptown | Visited Research Penetration Think Tank 4534 | -7/Scraptown | Visited Cartography Club 4770 | -7/Scraptown | Learned location of Quarantine (-2) 4770 | -7/Scraptown | Learned 8 Materials zone layouts 4770 | -7/Scraptown | Learned 20 Factory zone layouts 4770 | -7/Scraptown | Learned 8 Research zone layouts 4770 | -7/Scraptown | Learned 4 Storage zone layouts 4770 | -7/Scraptown | Learned 16 Upper Caves zone layouts 4770 | -7/Scraptown | Learned 24 Upper Caves zone layouts 4770 | -7/Scraptown | Learned 8 Proximity Caves zone layouts 4770 | -7/Scraptown | Learned 16 Proximity Caves zone layouts 4770 | -7/Scraptown | Learned 4 Hub_04(d) zone layouts 4770 | -7/Scraptown | Learned 4 Armory zone layouts 4770 | -7/Scraptown | Learned location of 3 exits from Lower Caves 4770 | -7/Scraptown | Learned location of 3 exits from Upper Caves 4770 | -7/Scraptown | Learned location of 2 exits from Proximity Caves 4843 | -7/Scraptown | Visited Modified Component R&D 5018 | -7/Scraptown | Discovered new exit (range 5) 5089 | -7/Scraptown | Met Optimus 5089 | -7/Scraptown | Accepted into 0bPrime 5177 | -7/Scraptown | Entered Factory 5177 | -5/Factory | Evolved 10 slots: Power x1, Propulsion x3, Utility x5, Weapon x1 5178 | -5/Factory | Identified exit to Factory 5239 | -5/Factory | Found Prototype Launcher 5239 | -5/Factory | Identified Mni. Smartbomb Launcher 5270 | -5/Factory | Loaded intel: 8 recycling unit locations 5454 | -5/Factory | Lost 10 parts (1p2n4u3w) 5610 | -5/Factory | Discovered new exit (range 3) 5713 | -5/Factory | Discovered exit to Factory (range 15) 5933 | -5/Factory | Cargo convoy interrupted 5937 | -5/Factory | System corruption reached 10% 5962 | -5/Factory | Discovered new exit (range 8) 5967 | -5/Factory | Entered Upper Caves 5968 | -5/Upper Caves | Identified exit to Upper Caves 6065 | -5/Upper Caves | Encountered a Warlord checkpoint 6139 | -5/Upper Caves | Attacked by a delusional Derelict stockpiling Unaware 6423 | -5/Upper Caves | Build established: Scavenger-Mutant 7021 | -5/Upper Caves | Entered another Upper Caves area 7021 | -5/Upper Caves | Accompanied by 2 allies 7022 | -5/Upper Caves | Identified exit to Zhirov 7387 | -5/Upper Caves | Build established: Scavenger-Tank 7539 | -5/Upper Caves | Spotted B-75 Beast 7852 | -5/Upper Caves | Entered Zhirov 7852 | -5/Zhirov | Accompanied by 1 ally 7852 | -5/Zhirov | Discovered new exit (range 3) 7883 | -5/Zhirov | Met Zhirov 7918 | -5/Zhirov | Learned location of Testing (-3) 7928 | -5/Zhirov | Zhirov requested help retrieving the SGEMP Prototype 7954 | -5/Zhirov | Found Alien Artifact 7954 | -5/Zhirov | Identified Integrated Dissipator 7954 | -5/Zhirov | Installed Integrated Dissipator, increased core heat dissipation (+20) 8171 | -5/Zhirov | Entered Proximity Caves 8171 | -4/Proximity Caves | Accompanied by 1 ally 8172 | -4/Proximity Caves | Build established: Scavenger-Mutant 8204 | -4/Proximity Caves | Attracted the attention of an 0b10 checkpoint 8268 | -4/Proximity Caves | Attracted the attention of an 0b10 outpost 8301 | -4/Proximity Caves | Core integrity fell below 50% 8337 | -4/Proximity Caves | Learned Research emergency access door positions 8359 | -4/Proximity Caves | Entered Factory 8359 | -4/Factory | Evolved 2 slots: Propulsion x1, Utility x1 8360 | -4/Factory | Identified exit to Extension 8375 | -4/Factory | Lost 7 parts (4n3u) 8531 | -4/Factory | Spotted B-86 Titan 8729 | -4/Factory | Lost 7 parts (3n1u3w) 8735 | -4/Factory | Discovered new exit (range 8) 8959 | -4/Factory | Discovered new exit (range 9) 9092 | -4/Factory | Lost 4 parts (3u1w) 9159 | -4/Factory | Lost 3 parts (1n2w) 9337 | -4/Factory | Lost 3 parts (1n1u1w) 9441 | -4/Factory | Identified exit to Research 9523 | -4/Factory | Cargo convoy interrupted 9523 | -4/Factory | Spotted Striker 9524 | -4/Factory | Core integrity fell below 50% 9531 | -4/Factory | Spotted Striker 9539 | -4/Factory | Entered Research 9539 | -3/Research | Evolved 2 slots: Propulsion x2 9540 | -3/Research | Identified exit to Testing 9541 | -3/Research | Identified exit to Research 9541 | -3/Research | Identified exit to Armory 9559 | -3/Research | Lost 6 parts (1p2n3u) 10115 | -3/Research | Build established: Scavenger-Gunner 10286 | -3/Research | System corruption reached 10% 10504 | -3/Research | Build established: Tank 10579 | -3/Research | Found Unknown Launcher 10826 | -3/Research | Entered Testing 10901 | -3/Testing | Found Prototype Ballistic Gun 10901 | -3/Testing | Identified Hyp. Multirail 11041 | -3/Testing | Discovered exit to Research (range 16) 11174 | -3/Testing | Entered Research 11174 | -2/Research | Evolved 2 slots: Utility x1, Weapon x1 11606 | -2/Research | Destroyed 12 combat bots 11686 | -2/Research | Build established: Gunner 11729 | -2/Research | Identified Gamma Bomb Array 11774 | -2/Research | Central database locked down 11899 | -2/Research | Identified exit to Quarantine 12236 | -2/Research | Build established: Scavenger-Gunner 12424 | -2/Research | First assault squad dispatched 12530 | -2/Research | System corruption reached 10% 12733 | -2/Research | Spotted B-90 Cyclops 12786 | -2/Research | Lost 3 parts (1p1u1w) 13013 | -2/Research | Entered Quarantine 13248 | -2/Quarantine | Found Alien Artifact 13248 | -2/Quarantine | Identified Phase Redirector 13263 | -2/Quarantine | First assault squad dispatched 13311 | -2/Quarantine | Discovered new exit (range 24) 13542 | -2/Quarantine | Destroyed 7 combat bots 13555 | -2/Quarantine | Scanned by Researcher 13640 | -2/Quarantine | Destroyed 7 combat bots 13686 | -2/Quarantine | Entered Access 13686 | -1/Access | Evolved 2 slots: Utility x2 13899 | -1/Access | Lost 5 parts (3u2w) 14032 | -1/Access | Identified exit to Command 14139 | -1/Access | Lost 11 parts (2p4n3u2w) 14226 | -1/Access | Lost 5 parts (2n1u2w) 14317 | -1/Access | System corruption reached 10% 14343 | -1/Access | Destroyed 11 combat bots 14350 | -1/Access | Lost 4 parts (1p2n1u) 14394 | -1/Access | System corruption reached 30% 14425 | -1/Access | Lost 9 parts (4n2u3w) 14436 | -1/Access | First assault squad dispatched 14515 | -1/Access | Lost 3 parts (1p1n1w) 14580 | -1/Access | Attached CPS modules to Q553-y. 14609 | -1/Access | Lost 8 parts (2p2n2u2w) 14649 | -1/Access | Found Prototype Device 14812 | -1/Access | Spotted B-99 Colossus 14824 | -1/Access | Spotted B-99 Colossus 14839 | -1/Access | Core integrity fell below 50% 14855 | -1/Access | Identified Exp. Focal Shield 14863 | -1/Access | Core integrity fell below 20% 14871 | -1/Access | Entered Command 14897 | -1/Command | Lost 30 parts (4p8n13u5w) 14963 | -1/Command | Destroyed by G-73 Enforcer with Phase Gun Last Messages --------------- 14878_ System corrupted: Heat flow error (+282). 14893_ System corrupted: Substantial component data lost. 14897_ Triggered Alarm Trap. 14897_ An alarm sounds. 14897_ ALERT: Alarm triggered, dispatching investigation squad. 14908_ System corrupted: IFF burst signal emitted. 14909_ Acquired Centrium Leg. 14913_ Acquired Imp. Fusion Compressor. 14925_ System corrupted: Matter fused (-8). 14939_ Sneak attack on G-73 Enforcer. 14939_ G-73 Enforcer suffers critical hit (Impale). 14939_ G-73 Enforcer destroyed. 14943_ System corrupted: Component data lost. 14943_ Lance destroyed. 14944_ Acquired Lgt. Quantum Reactor. 14946_ Acquired Myomer Leg. 14950_ Acquired Adv. Heat Sink. 14958_ System corrupted: Component data lost. 14959_ Integrated Corrupted KE Penetrator (+10). 14960_ Slug penetrates G-73 Enforcer. Map ----- +----------------------------------------------------+ | ?????????????????????????????????????????????????? | | ?????????????????????????????????????????????????? | | ?????????????????????????????????????????????????? | | ?????????????????????????????????????????????????? | | ?????????????????????????????????????????????????? | | ?????????????????????????????????????????????????? | | ?????????????????????????????????????????????????? | | ?????????????????????????????????????????????????? | | ?????????????????????????????????????????????????? | | ?????????????????????????????????????????????????? | | ?????????????????????????????????????????????????? | | ?????????????????????????????????????????????????? | | ?????????????????????????????????????????????????? | | ?????????????????????????????????????????????????? | | ?????????????????????????????????????????????????? | | ?????????????????????????????????????????????????? | | ?????????????????????????????????????? ??????????? | | ?????????????????????????????????????# ?????????? | | ?????????????????????????????????????# ?????????? | | ?????????????????????????????????????# ?????????? | | ????????????????????????############## ?????????? | | ????????????????????????# # +????????? | | ???????????? ##????????# ! # #????????? | | ???????????# ??????# # #????????? | | ???????????# ????# # #????????? | | ???????????" ??#@ # ########## | | ???????????" [#gg # | | ?????????????? "" %+ # | | ??????????????? """" !# "" "" # | | ????????????????"""" # ""T"" # ##### | | ???????????????? "" ?# """ # #???# | | ??????????????? ??# # #???# | | ?????????????? ???# + #???# | | ?????????????? ???############## ####???# | | ????????????? ######????????????######+######??# | | ????????????????????????????????# ###### | | ????????????????????????????????# # | | ????????????????????????????????# # | | ????????????????????????????????# # | | ????????????????????????????????# # | | ????????????????????????????????# # | | ????????????????????????????????# # | | ????????????????????????????????################## | | | | | | | | | | | | | | | +----------------------------------------------------+ Best States ------------- Heat Dissipation 181 Energy Generation 45 Energy Capacity 915 Matter Stores 300 Matter Capacity 300 Sight Range 16 Terrain Scan Range 24 Terrain Scan Density 1010 ECM Strength 1 Jamming Range 16 EM Shielding 4 Armor Coverage 1200 Resistance: KI 30 Resistance: TH 30 Resistance: EM 25 Core Shielding 40 Power Shielding 90 Weapon Shielding 33 Weapon Cycling 25 Phase Shifting 15 Evasion (%) 70 Targeting Accuracy 14 Melee Accuracy 5 Target Analysis 12 Core Analysis 6 Recoil Reduction 10 Particle Charging 25 Offensive Hacking 12 Authchip Count 1 Item Schematics ----------------- Assault Drone Bay | -5/Zhirov | Free Exp. Heat Sink | -5/Zhirov | Free Exp. Optical Array | -5/Zhirov | Free Imp. Arc Thrower | -5/Zhirov | Free Robot Schematics ------------------ None Fabricated ------------ Nothing Repaired ---------- Nothing Studied --------- Nuclear Pulse Thruster | -5/Factory | Hacked Ion Engine | -5/Factory | Hacked Imp. Proton Missile Launcher | -5/Factory | Hacked Railgun | -3/Research | Hacked Hyp. Railgun | -2/Research | Hacked Alien Tech Used ----------------- Integrated Dissipator Phase Redirector Achievements -------------- Longdome?! Tank Life Challenges ------------ None Game ------ Seed PortableStasisSpecial Manual? 0 Play Time 02:49:23 Cumulative 490.6 hours Start 2025.12.24 @ 17:38:06 End 2025.12.24 @ 22:06:14 Sessions 3 Manual Loads 0 Difficulty Rogue Special Mode None Game No. 196 Rogue 123 Adventurer 68 Explorer 5 Win Type - Total 39 Types 20/3/4/5/3/0/1/1/0/2 Lore% 83 Gallery% 79 Achievement% 64 Wizard Run 0 Options --------- Layout 0 ASCII 0 Keyboard 0 Movement Numpad Keybinds 0 Fullscreen 1 Font 24/Smallcaps Map View 76x50 Zoom Use 0% Tactical HUD 1 Map Filters NONE Filters NONE Steam 1 RUN: 010b7bf9-f289-4188-b8f2-7eb0f377601d